Cogmind - Beta 15 @@@ ROGUE MODE // 2025.10.12 @ 14:08:00 Player: microsand Result: Destroyed by S-10 Pest with Light Assault Rifle Performance ------------- Evolutions (0) 0 Regions Visited (2) 400 Robots Destroyed (33) 165 Value Destroyed (501) 501 Prototype IDs (0) 0 Alien Tech Used (0) 0 Bonus (0) 0 TOTAL SCORE: 1066 Bonus ------- None Cogmind --------- Core Integrity 0/250 Matter 278/300 Energy 100/100 System Corruption 6% Temperature Cool (0) Movement Core (350) Ox6 Location -10/Mines Parts ------- > --- POWER (1) -------- (None) > --- PROPULSION (2) --- (None) > --- UTILITY (2) ------ Large Storage Unit Signal Interpreter > --- WEAPON (2) ------- (None) > --- INVENTORY (15) --- Light Treads Flight Unit Small Storage Unit Visual Processing Unit Terrain Scan Processor Salvage Targeting Computer Peak State ------------ > --- POWER ------------ Light Ion Engine > --- PROPULSION ------- Aluminum Leg Aluminum Leg > --- UTILITY ---------- Small Storage Unit Signal Interpreter > --- WEAPON ----------- Assault Rifle Light Assault Rifle > --- INVENTORY -------- Light Treads Flight Unit Flight Unit Visual Processing Unit Terrain Scan Processor Salvage Targeting Computer Small Laser [Rating: 8] Favorites ----------- Power Light Ion Engine Engine Light Ion Engine Propulsion Aluminum Leg Treads Light Treads Leg Aluminum Leg Flight Unit Flight Unit Utility Small Storage Unit Device Seismic Detector Storage Small Storage Unit Processor Signal Interpreter Weapon Assault Rifle Energy Gun EM Pulse Gun Ballistic Gun Assault Rifle Special Melee Weapon Datajack Build | -11 -10 -10 ------- Run | Yrd Mat Min Slots Evolved . | . . . Power . | . . . Propulsion . | . . . Utility . | . . . Weapon . | . . . Parts Attached 19 | 7 12 . Power 1 | 1 . . Engine 1 | 1 . . Core . | . . . Reactor . | . . . Propulsion 8 | 2 6 . Treads 2 | 2 . . Leg 3 | . 3 . Wheel . | . . . Hover . | . . . Flight 3 | . 3 . Utility 5 | 2 3 . Device 1 | 1 . . Storage 3 | 1 2 . Processor 1 | . 1 . Hackware . | . . . Protection . | . . . Artifact . | . . . Weapon 5 | 2 3 . Energy Gun 2 | 1 1 . Energy Cannon . | . . . Ballistic Gun 2 | 1 1 . Ballistic Cannon . | . . . Launcher . | . . . Special Weapon . | . . . Impact Weapon . | . . . Slashing Weapon . | . . . Piercing Weapon . | . . . Special Melee Weapon 1 | . 1 . Unidentified Prototypes . | . . . Corrupted Parts 1 | . 1 . System Corruption 6 | . 6 . Parts Lost 9 | . 6 3 Power 1 | . . 1 Propulsion 5 | . 3 2 Utility 1 | . 1 . Weapon 2 | . 2 . Highest Loss Streak 3 | . 3 3 To Critical Strikes . | . . . Average Backups 4 | 1 5 6 Power . | . . . Propulsion 1 | . 2 2 Utility 1 | . 1 4 Weapon 1 | 1 1 . Tool/Special . | . . . Unused Backups 6 | . 2 4 Power . | . . . Propulsion 1 | . . 1 Utility 3 | . . 3 Weapon 2 | . 2 . Tool/Special . | . . . Average Slot Usage (%) 87 | . 89 46 Engine 13 | . 14 7 Treads 4 | . 4 . Leg 17 | . 17 7 Flight 1 | . 1 3 Device 3 | . 3 . Storage 12 | . 12 14 Processor 11 | . 11 14 Ballistic Gun 18 | . 19 . Special Melee Weapon 2 | . 2 . Peak Build Rating 8 | 7 8 5 Average Rating 6 | 4 6 2 On Entrance 4 | . 7 5 Naked Turns . | . . . Heaviest Build 24 | 13 24 23 Greatest Support 40 | 40 40 10 Greatest Overweight (x) 6 | . 5 6 Average Overweight (x) . | . . 5 Largest Inventory Capacity 15 | 8 15 15 Average Capacity 7 | 6 8 15 Most Carried 8 | 4 8 6 Average Carried 4 | 1 5 6 Final Capacity 15 | 8 15 15 Final Carried 7 | 2 7 6 Class Distribution -------------------- 52% | Mutant 47% | Scavenger-Mutant Dominant Class ---------------- Scavenger-Mutant | -10/Materials Mutant | -10/Mines Resources | -11 -10 -10 ----------- Run | Yrd Mat Min Matter Collected 592 | 290 302 . Remotely . | . . . Salvage Created 981 | 207 774 . Parts 71 | 18 53 . Haulers Intercepted . | . . . Recyclers Shooed 1 | . 1 . Parts Field Recycled . | . . . Retrieved Matter . | . . . Parts Self-Destructed . | . . . Prevented . | . . . Kills | -11 -10 -10 ------- Run | Yrd Mat Min Combat Hostiles Destroyed 17 | . 17 . Guns 15 | . 15 . AOE 2 | . 2 . Classes Destroyed 8 | 3 5 . Worker 3 | 1 2 . Builder 2 | . 2 . Tunneler 6 | 6 . . Recycler 3 | 1 2 . Operator 1 | . 1 . Watcher 1 | . 1 . Swarmer 8 | . 8 . Grunt 9 | . 9 . Best Kill Streak 6 | 2 6 . Combat Bots Only 3 | . 3 . Max Kills in Single Turn 5 | 2 5 . Gunslinging . | . . . Exploded 2 | . 2 . Melee . | . . . Uniques/NPCs Destroyed . | . . . Combat | -11 -10 -10 -------- Run | Yrd Mat Min Hostile Shots Fired 126 | . 86 40 Missed 39 | . 28 11 Hits 87 | . 58 29 Projectile 87 | . 58 29 Critical Strikes 1 | . . 1 Damage Taken 779 | . 535 244 Core 251 | . 120 131 Absorbed by Shields . | . . . Core Remaining (%) 100 | 100 . . Volleys Fired 82 | 13 69 . Largest 2 | 2 2 . Hottest 60 | 60 40 . Shots Fired 121 | 26 95 . Gun 121 | 26 95 . Cannon . | . . . Launcher . | . . . Special . | . . . Kinetic 108 | 13 95 . Thermal . | . . . Explosive . | . . . Electromagnetic 13 | 13 . . Robot Hit Streak 6 | 6 6 . Robot Miss Streak 5 | 2 5 . Penetration Max . | . . . Secondary Targets 2 | . 2 . Max Gunslinging Chain 1 | . 1 . Shots Hit Robots 79 | 15 64 . Core Hits 49 | 10 39 . Critical Kills 2 | . 2 . Critical Parts Destroyed 1 | . 1 . Critical Strikes 3 | . 3 . Destroy 3 | . 3 . Melee Attacks 7 | . 7 . Impact . | . . . Slashing . | . . . Piercing . | . . . Sneak Attacks 3 | . 3 . Combat Hostiles . | . . . Follow-up Attacks . | . . . Damage Inflicted 1089 | 263 825 1 Guns 816 | 195 621 . Cannons . | . . . Explosions 272 | 68 204 . Melee . | . . . Ramming 1 | . . 1 Kinetic 686 | 65 621 . Thermal 82 | 68 14 . Explosive . | . . . Electromagnetic 320 | 130 190 . Impact . | . . . Slashing . | . . . Piercing . | . . . Highest Corruption 6 | . 6 6 Average Corruption 6 | . 6 6 Corruption Purged . | . . . Corruption Blocked . | . . . Effects 1 | . . 1 Matter Fused 1 | . . 1 Overload Shots . | . . . Overflow Damage . | . . . Projectiles . | . . . Explosions . | . . . Melee . | . . . Knockbacks . | . . . Impact . | . . . Kinetic . | . . . Secondary . | . . . Self-Inflicted Damage . | . . . Shots . | . . . Rammed 1 | . . 1 Targets Rammed 2 | . . 2 Kicked 1 | . . 1 Crushed . | . . . Highest Temperature 12 | . 12 . Average Temperature 6 | . 6 . Received Heat Transfer 150 | . 150 . Siege Activations . | . . . Martial Activations . | . . . Shielding Activations . | . . . Robots Disrupted . | . . . Combat Hostiles . | . . . Robots Corrupted . | . . . Combat Hostiles . | . . . Parts Fried 1 | 1 . . Impact Corruptions . | . . . Robots Melted . | . . . Combat Hostiles . | . . . Parts Melted . | . . . Heat Transferred 200 | 150 50 . Parts Sabotaged . | . . . Parts Stolen . | . . . Parts Stripped . | . . . Power Chain Reactions 3 | 2 1 . Alert | -11 -10 -10 ------- Run | Yrd Mat Min Maximum Alert Level . | . . . Low Security (%) 100 | 100 100 100 Level 1 . | . . . Level 2 . | . . . Level 3 . | . . . Level 4 . | . . . Level 5 . | . . . High Security . | . . . Max Security . | . . . Peak Influence 137 | 10 137 7 Initial 7 | . . 7 Average 50 | 2 60 1 Influence Increases 531 | 40 491 . Destroy 0b10 Robot/C 340 | . 340 . Destroy 0b10 Robot/NC 80 | 40 40 . Destroy Leader 72 | . 72 . Successful Hack 9 | . 9 . Disable Machine 15 | . 15 . Lose Combat Pursuer 15 | . 15 . Influence Decreases 531 | 40 472 19 Entered New Map 12 | . . 12 Time Decay 403 | 40 363 . Lost Part 57 | . 50 7 Purge Threat 59 | . 59 . Squads Dispatched 4 | . 4 . Investigation 1 | . 1 . Extermination . | . . . Reinforcement 3 | . 3 . Assault . | . . . Garrison . | . . . Intercept . | . . . Searches Triggered . | . . . Construction Impeded . | . . . Haulers Reinforced . | . . . Active Scanning Responses . | . . . Cargo Convoy Interrupts . | . . . Stealth | -11 -10 -10 --------- Run | Yrd Mat Min Distress Signals 2 | . 2 . Communications Jammed . | . . . Distress Signals . | . . . Times Spotted 33 | . 30 3 Peak Tracking Total 4 | . 4 3 Tactical Retreats 1 | . 1 . Traps | -11 -10 -10 ------- Run | Yrd Mat Min Traps Triggered 1 | . 1 . Indirectly . | . . . Trap Hack Attempts . | . . . Triggered . | . . . Disarmed . | . . . Reprogrammed . | . . . Reused . | . . . Traps Extracted . | . . . Installed . | . . . Triggered . | . . . Machines | -11 -10 -10 ---------- Run | Yrd Mat Min Machines Disabled 1 | . 1 . Max in Single Turn 1 | . 1 . Machines Repaired . | . . . Machines Dismantled . | . . . Machines Sabotaged . | . . . Overloaded Fab Kills . | . . . Hacking | -11 -10 -10 --------- Run | Yrd Mat Min Machines Accessed 4 | . 4 . Terminals 4 | . 4 . Fabricators . | . . . Repair Stations . | . . . Recycling Units . | . . . Scanalyzers . | . . . Garrison Access . | . . . Total Hacks 8 | . 8 . Successful 3 | . 3 . Failed 5 | . 5 . Catastrophic . | . . . Database Lockouts . | . . . Manual 8 | . 8 . Terminals 8 | . 8 . Fabricators . | . . . Repair Stations . | . . . Recycling Units . | . . . Scanalyzers . | . . . Garrison Access . | . . . Terminal Hacks 1 | . 1 . Unreport Threat 1 | . 1 . Fabricator Hacks . | . . . Repair Station Hacks . | . . . Recycling Unit Hacks . | . . . Scanalyzer . | . . . Garrison Access Hacks . | . . . Unauthorized Hacks 2 | . 2 . Terminals 2 | . 2 . Botnet 2 | . 2 . Fabricators . | . . . Repair Stations . | . . . Recycling Units . | . . . Scanalyzers . | . . . Garrison Access . | . . . Data Cores Recovered . | . . . Used . | . . . Hacking Detections 3 | . 3 . Full Trace Events . | . . . Feedback Events . | . . . Feedback Blocked . | . . . Robot Schematics Acquired . | . . . Robots Built . | . . . Authchips . | . . . Time . | . . . Total Robot Build Rating . | . . . Part Schematics Acquired . | . . . Parts Built . | . . . Authchips . | . . . Time . | . . . Total Part Build Rating . | . . . Parts Repaired . | . . . Time . | . . . Parts Recycled . | . . . Recycled Matter . | . . . Retrieved Matter . | . . . Retrieved Components . | . . . Parts Scanalyzed . | . . . Part Schematics Acquired . | . . . Parts Damaged . | . . . Bothacking | -11 -10 -10 ------------ Run | Yrd Mat Min Used RIF Installer . | . . . Robots Hacked 3 | . 3 . Non-combat 2 | . 2 . Combat 1 | . 1 . Robot Hacks Applied 3 | . 3 . parse_system 2 | . 2 . no_distress 1 | . 1 . Relay Couplers Released . | . . . Fabnet Peak Effective % . | . . . Robots Rewired . | . . . Allies Hacked . | . . . Hacks Repelled . | . . . Allies | -11 -10 -10 -------- Run | Yrd Mat Min Total Allies . | . . . Largest Group . | . . . Highest-Rated Group . | . . . Highest-Rated Ally . | . . . Total Orders . | . . . Ally Attacks . | . . . Total Damage . | . . . Kills . | . . . Allies Corrupted . | . . . Allies Melted . | . . . Intel | -11 -10 -10 ------- Run | Yrd Mat Min Active Infowar (turns) 287 | 2 285 . Seismic 287 | 2 285 . Robot Analysis Total . | . . . Derelict Logs Recovered . | . . . Drone Launches . | . . . Drone Recoveries . | . . . Exploration | -11 -10 -10 ------------- Run | Yrd Mat Min Turns Passed 1403 | 222 1149 32 Spaces Moved 781 | 119 654 8 Core 52 | 21 25 6 Treads 202 | 98 104 . Legs 462 | . 460 2 Wheels . | . . . Hover . | . . . Flight 65 | . 65 . Fastest Speed 37 | 50 37 260 Average Speed 134 | 140 130 327 Slowest Speed 440 | 160 440 350 Overloaded Moves . | . . . Propulsion Burnouts . | . . . Robots Hopped . | . . . Potential Cave-ins . | . . . Cave-ins Triggered . | . . . Exploration Rate (%) 28 | 4 78 4 Regions Visited 2 Branch Regions 1 Pre-discovered Areas . | . . . Known Exits Taken 1 | . 1 . Unknown Exits Taken 1 | 1 . . Scrap Searched . | . . . Spaces Dug . | . . . Terrain Destroyed . | . . . Melee . | . . . Projectile . | . . . AOE . | . . . Terrain Rammed . | . . . Walls Destroyed . | . . . Machines Disabled . | . . . Actions | -11 -10 -10 --------- Run | Yrd Mat Min Total 1019 | 148 860 11 Wait 96 | 1 95 . Move 779 | 118 653 8 Hop . | . . . Pick Up 25 | 9 16 . Fast Attach . | . . . Attach 17 | 7 9 1 Detach 1 | . 1 . Swap 5 | . 5 . Drop 5 | . 5 . Fire 82 | 13 69 . Melee 7 | . 7 . Ram 1 | . . 1 Kick 1 | . . 1 Crush . | . . . Escape Stasis . | . . . Rewire . | . . . Trap . | . . . Miscellaneous . | . . . Route ------- -11/Scrapyard -10/Materials (discovered 4 exits: *Mat x3 / *Min) -10/Mines History --------- Turn | Location | Event 3 | -11/Scrapyard | Discovered new exit (range 16) 223 | -11/Scrapyard | Entered Materials 302 | -10/Materials | Build established: Mutant 539 | -10/Materials | Lost 3 parts (2n1u) 626 | -10/Materials | Discovered new exit (range 16) 681 | -10/Materials | Identified exit to Materials 860 | -10/Materials | Discovered exit to Materials (range 7) 1078 | -10/Materials | Discovered exit to Materials (range 15) 1105 | -10/Materials | Discovered new exit (range 14) 1256 | -10/Materials | Build established: Scavenger-Mutant 1367 | -10/Materials | Identified exit to Mines 1372 | -10/Materials | Entered Mines 1374 | -10/Mines | Core integrity fell below 50% 1392 | -10/Mines | Core integrity fell below 20% 1404 | -10/Mines | Destroyed by S-10 Pest with Light Assault Rifle Last Messages --------------- recycling unit. 01322_ R-06 Scavenger collects Hover Unit. 01323_ Acquired Lrg. Storage Unit. 01326_ R-06 Scavenger collects Datajack. 01357_ Integrated Corrupted Flight Unit (+6). 01357_ Complication: Lgt. Assault Rifle rejected. 01357_ Complication: Aluminum Leg rejected. 01357_ Complication: Sml. Laser rejected. 01367_ EXIT=IDENTIFIED: MINES LOCATION=MINES GOAL=ESCAPE Something is scanning the area. 01378_ Flight Unit destroyed. 01379_ Kicked S-10 Pest out of the way. 01380_ Aluminum Leg destroyed. 01381_ Slammed into S-10 Pest. 01382_ Lgt. Ion Engine destroyed. 01385_ System corrupted: Matter fused (-5). 01400_ S-10 Pest destroyed. Map ----- +----------------------------------------------------+ | | | | | | | | | | | | | | | | | | | | | | | | | | | ?????????????????????????????????????????????????? | | ?????????????????????????????????????????????????? | | ?????????????????????????????????????????????????? | | ?????????????????????????????????????????????????? | | ???????????????########??????????????????????????? | | ???????????????# #??????????????????????????? | | ???????????????# #??????????????????????????? | | ???????????????# #??????????????????????????? | | ???????????????# #??????????????????????????? | | ???????????????#### ###??????????????????????????? | | ??????????????????# #????????????????????????????? | | ??????????????????# ########### ????????? | | ??????????????????# s @ ????????? | | ?????????????# s=%= ########## ????????? | | ?????????????# ######????????????????????????????? | | ?????????????????????????????????????????????????? | | ?????????????????????????????????????????????????? | | ?????????????????????????????????????????????????? | | ?????????????????????????????????????????????????? | | ?????????????????????????????????????????????????? | | ?????????????????????????????????????????????????? | | ?????????????????????????????????????????????????? | | ?????????????????????????????????????????????????? | | ?????????????????????????????????????????????????? | | ?????????????????????????????????????????????????? | | ?????????????????????????????????????????????????? | | ?????????????????????????????????????????????????? | | ?????????????????????????????????????????????????? | | ?????????????????????????????????????????????????? | | ?????????????????????????????????????????????????? | | ?????????????????????????????????????????????????? | | ?????????????????????????????????????????????????? | | ?????????????????????????????????????????????????? | | ?????????????????????????????????????????????????? | | ?????????????????????????????????????????????????? | | ?????????????????????????????????????????????????? | | ?????????????????????????????????????????????????? | +----------------------------------------------------+ Best States ------------- Heat Dissipation 25 Energy Generation 10 Energy Capacity 125 Matter Stores 300 Matter Capacity 300 Sight Range 16 Terrain Scan Density 10 Evasion (%) 62 Recoil Reduction 2 Item Schematics ----------------- None Robot Schematics ------------------ None Fabricated ------------ Nothing Repaired ---------- Nothing Alien Tech Used ----------------- None Achievements -------------- None Challenges ------------ None Game ------ Seed BeamGodDrillbomb Manual? 0 Play Time 00:08:17 Cumulative 19.8 hours Start 2025.10.12 @ 11:59:22 End 2025.10.12 @ 14:08:00 Sessions 1 Manual Loads 0 Difficulty Rogue Special Mode None Game No. 57 Rogue 57 Adventurer 0 Explorer 0 Win Type - Total 0 Types 0/0/0/0/0/0/0/0/0/0 Lore% 32 Gallery% 26 Achievement% 29 Wizard Run 0 Options --------- Layout 1 ASCII 0 Keyboard 0 Movement Numpad Keybinds 0 Fullscreen 1 Font 24/Smallcaps Map View 50x35 Zoom Use 0% Tactical HUD 1 Map Filters NONE Filters NONE Steam 1 RUN: d14e9495-a045-455a-bc82-c35f73d9fe7e